bitfinex/quotes_SOLUSD_20241019
["timestamp","ask_amount","ask_price","bid_price","bid_amount"]
[1729379901527,23.776884,158.97,158.9,0.6423024]
[1729379901855,23.876884,158.97,158.91,2.14605655]
[1729379902061,23.876884,158.97,158.92,2.14605655]
[1729379902362,23.876884,158.97,158.91,2.14605655]
[1729379902363,23.776884,158.97,158.91,2.14605655]
[1729379902538,23.776884,158.97,158.9,0.6423024]
[1729379902539,23.776884,158.97,158.92,2.14605655]
[1729379902746,6.291,158.96,158.93,2.14605655]
[1729379902940,23.776884,158.97,158.91,2.14605655]
[1729379903149,23.776884,158.97,158.92,2.14605655]
[1729379903345,23.776884,158.97,158.9,0.6423024]
[1729379903540,23.776884,158.97,158.91,2.14562072]
[1729379903762,23.776884,158.97,158.92,2.14562072]
[1729379903940,23.776884,158.97,158.9,4.07639421]
[1729379904139,23.776884,158.97,158.91,2.14595569]
[1729379904343,23.776884,158.97,158.92,2.14595569]
[1729379904549,23.776884,158.97,158.93,2.14595569]
[1729379904751,23.776884,158.97,158.91,2.14595569]
[1729379904968,23.776884,158.97,158.92,2.14595569]
[1729379905264,23.776884,158.97,158.93,2.14595569]
[1729379905582,23.776884,158.97,158.91,2.14595569]
[1729379905739,23.776884,158.97,158.92,2.14595569]
[1729379905931,23.776884,158.97,158.93,2.14595569]
[1729379906135,23.776884,158.97,158.91,2.14595569]
[1729379906353,23.776884,158.97,158.92,2.14595569]
[1729379906551,23.776884,158.97,158.93,2.14595569]
[1729379906756,23.776884,158.97,158.91,2.14595569]
[1729379906960,23.776884,158.97,158.92,2.14595569]
[1729379907164,23.776884,158.97,158.93,2.14595569]
[1729379907467,23.776884,158.97,158.91,2.14608181]
[1729379907642,23.776884,158.97,158.92,2.14608181]
[1729379907841,23.776884,158.97,158.93,2.14608181]
[1729379908036,23.776884,158.97,158.91,2.14608181]
[1729379908265,23.776884,158.97,158.92,2.14609221]
[1729379908439,23.776884,158.97,158.93,2.14609221]
[1729379908643,23.776884,158.97,158.91,3.43414561]
[1729379908844,23.776884,158.97,158.92,2.14596997]
[1729379909055,23.776884,158.97,158.93,2.14596997]
[1729379909257,23.776884,158.97,158.91,3.43414561]
[1729379909447,23.776884,158.97,158.92,2.14600867]
[1729379909644,23.776884,158.97,158.93,2.14600867]
[1729379909863,23.776884,158.97,158.91,3.43414561]
[1729379910170,23.776884,158.97,158.92,2.14601041]
[1729379910352,23.776884,158.97,158.93,2.14601041]
[1729379910667,23.776884,158.97,158.92,2.1458606]
[1729379910857,23.776884,158.97,158.93,2.1458606]
[1729379911053,23.776884,158.97,158.91,2.1458606]
[1729379911263,23.776884,158.97,158.92,2.1458606]
[1729379911456,23.776884,158.97,158.93,2.1458606]
[1729379911650,23.776884,158.97,158.91,2.14655671]
[1729379911958,23.776884,158.97,158.92,2.14655671]
[1729379912163,23.776884,158.97,158.9,0.6423024]
[1729379912164,23.776884,158.97,158.9,4.07644801]
[1729379912346,23.776884,158.97,158.91,2.14578018]
[1729379912547,23.776884,158.97,158.92,2.14578018]
[1729379912748,23.776884,158.97,158.9,4.07644801]
[1729379912749,23.776884,158.97,158.93,2.14578018]
[1729379912965,23.876884,158.97,158.91,2.14578018]
[1729379913165,23.876884,158.97,158.9,0.6423024]
[1729379913166,6.2926,158.92,158.9,0.6423024]
[1729379913371,23.776884,158.93,158.9,0.6423024]
[1729379918747,23.776884,158.94,158.9,0.6423024]
[1729379920154,30.068884,158.94,158.9,0.6423024]
[1729379921475,23.776884,158.91,158.9,0.6423024]
[1729379923477,23.776884,158.86,158.75,16.331]
[1729379923658,23.776884,158.86,158.76,8.8192904]
[1729379923853,50.170184,158.9,158.77,8.8192904]
[1729379924177,43.776884,158.9,158.78,8.8192904]
[1729379924354,43.776884,158.9,158.76,6.95579969]
[1729379924355,43.776884,158.9,158.79,8.8192904]
[1729379924559,43.776884,158.9,158.8,8.8192904]
[1729379924777,43.776884,158.9,158.81,5.38641099]
[1729379925085,23.776884,158.9,158.82,2.14530065]
[1729379925279,0.1,158.89,158.83,2.14530065]
[1729379925473,23.776884,158.88,158.81,2.14530065]
[1729379925662,23.776884,158.88,158.82,2.14530065]
[1729379925870,23.776884,158.88,158.81,2.14530065]
[1729379926381,23.776884,158.88,158.8,2.14530065]
[1729379926583,23.776884,158.88,158.78,2.14530065]
[1729379926878,23.776884,158.88,158.79,22.14530065]
[1729379927081,23.776884,158.88,158.8,5.37001302]
[1729379927961,23.776884,158.9,158.81,8.61280065]
[1729379928155,23.776884,158.9,158.82,5.36826274]
[1729379929169,23.776884,158.9,158.82,21.69926274]
[1729379929380,23.776884,158.9,158.83,2.14530065]
[1729379929981,6.3647,158.94,158.83,20.0]
[1729379930173,23.776884,158.93,158.84,2.14171464]
[1729379930560,23.776884,158.93,158.84,5.36417229]
[1729379931369,23.776884,158.94,158.84,5.36417229]
[1729379931580,15.4331,158.95,158.85,2.14171464]
[1729379931879,6.392,158.93,158.84,5.36417229]
[1729379932078,6.3917,158.94,158.84,5.36417229]
[1729379932662,23.776884,158.93,158.84,5.36417229]
[1729379932864,23.776884,158.93,158.85,2.14171464]
[1729379933069,23.776884,158.94,158.84,5.36417229]
[1729379933271,23.776884,158.95,158.85,22.14171464]
[1729379933471,23.776884,158.95,158.86,5.36417229]
[1729379933873,6.2909,158.96,158.86,5.36417229]
[1729379935186,23.776884,158.95,158.86,5.36417229]
[1729379936165,23.776884,158.95,158.87,25.36417229]
[1729379936360,23.776884,158.95,158.88,5.36417229]
[1729379936990,23.776884,158.95,158.88,5.36334947]
[1729379937188,23.776884,158.95,158.86,20.0]
[1729379937384,12.4405,158.98,158.87,5.36334947]
[1729379937575,12.4405,158.98,158.86,20.0]
[1729379937576,23.776884,158.97,158.88,25.36334947]
[1729379937777,23.776884,158.97,158.89,5.36334947]
[1729379937975,23.776884,158.97,158.88,20.0]
[1729379938184,23.776884,158.97,158.89,5.36334947]
[1729379938692,23.776884,158.98,158.89,5.36334947]
[1729379939077,15.1558,158.99,158.89,5.36334947]
[1729379939983,12.83469689,159.01,158.9,22.14089182]
[1729379940189,12.93469689,159.01,158.91,5.36334947]
[1729379940697,23.776884,159.0,158.91,5.36334947]
[1729379941073,23.776884,159.0,158.91,2.14047503]
[1729379941274,23.776884,159.0,158.91,3.22515525]
[1729379941589,23.776884,159.0,158.92,2.14047503]
[1729379942180,23.776884,159.0,158.91,5.36563028]
[1729379942581,23.776884,159.0,158.92,20.0]
[1729379942871,23.776884,159.01,158.93,2.14047503]
[1729379943099,23.776884,159.02,158.93,2.14047503]
[1729379943291,23.776884,159.02,158.88,20.1]
[1729379943498,30.065384,159.02,158.89,2.14100864]
[1729379943796,21.4441,159.03,158.9,25.36462584]
[1729379944093,21.4441,159.03,158.91,25.36462584]
[1729379944300,21.4441,159.03,158.92,25.36462584]
[1729379944590,21.4441,159.03,158.93,5.36462584]
[1729379944792,21.4441,159.03,158.94,2.14100864]
[1729379945289,23.776884,159.02,158.94,2.14100864]
[1729379945589,21.4424,159.07,158.95,2.14100864]
[1729379945887,21.4424,159.07,158.96,2.14100864]
[1729379946089,21.4424,159.07,158.97,2.14100864]
[1729379946393,21.4424,159.07,158.98,2.14100864]
[1729379946700,15.1558,159.07,158.98,20.0]
[1729379946882,21.4424,159.07,158.99,2.14100864]
[1729379947295,15.1558,159.07,158.99,2.14100864]
[1729379947477,15.1558,159.07,158.95,5.35478357]
[1729379947800,15.1558,159.07,158.96,22.14100864]
[1729379947989,15.1558,159.07,158.97,5.35478357]
[1729379948181,6.1504,159.08,158.97,2.14100864]
[1729379948497,15.1558,159.11,158.99,15.9368]
[1729379948693,6.2854,159.1,159.0,26.508]
[1729379950995,23.776884,159.09,159.0,26.508]
[1729379953696,6.2876,159.05,158.94,21.5745]
[1729379953903,6.2876,159.05,158.95,2.13329306]
[1729379955196,6.2876,159.05,158.95,22.13329306]
[1729379955386,6.2876,159.05,158.95,20.0]
[1729379957476,0.1,159.07,158.95,20.0]
[1729379957681,6.2879,159.04,158.95,20.0]
[1729379958123,23.776884,159.04,158.95,20.0]
[1729379961506,30.064584,159.04,158.95,20.0]
[1729379962023,23.776884,159.06,158.95,20.0]
[1729379962228,30.063384,159.08,158.96,2.13127386]
[1729379963408,6.2866,159.07,158.95,20.0]
[1729379964027,6.2866,159.07,158.96,2.13100356]
[1729379964430,6.2866,159.07,158.96,2.13198885]
[1729379965119,30.062984,159.08,158.96,2.13198885]
[1729379967322,6.287,159.06,158.95,20.0]
[1729379970127,23.776884,159.08,158.95,20.0]
[1729379970308,6.2865,159.07,158.95,20.0]
[1729379972616,6.2865,159.07,158.96,2.13084272]
[1729379975129,27.99811771,159.11,158.98,20.0]
[1729379975341,27.99811771,159.11,158.99,15.6883]
[1729379975342,21.71311771,159.11,158.99,15.6883]
[1729379975505,6.2854,159.1,159.0,20.0]
[1729379983922,6.2857,159.09,159.0,20.0]
[1729379986732,6.2857,159.09,158.99,15.6883]
[1729379987245,6.2857,159.09,159.0,20.0]
[1729379991349,6.2857,159.09,159.01,2.13803536]
[1729379993139,6.2866,159.07,159.01,2.13803536]
[1729379993336,6.2861,159.09,159.01,2.13803536]
[1729379994352,6.2861,159.09,159.02,2.13803536]
[1729379994753,6.2861,159.09,159.01,5.56080851]
[1729379995057,23.776884,159.1,159.02,2.13803536]
[1729379995265,6.2862,159.08,159.02,2.13803536]
[1729379995434,6.2862,159.08,159.01,5.56080851]
[1729379995758,6.2862,159.08,159.02,2.13803536]
[1729379996052,30.062484,159.1,159.03,2.13803536]
[1729379996251,30.062484,159.1,159.02,2.13803536]
[1729379996455,30.062484,159.1,159.03,2.1420742]
[1729379996658,30.062484,159.1,159.01,3.42277315]
[1729379996838,30.062484,159.1,159.02,2.14209534]
[1729379997034,30.062484,159.1,159.03,2.14209534]
[1729379997239,30.062484,159.1,159.01,3.42788412]
[1729379997447,6.2856,159.1,159.02,2.14217907]
[1729379997739,6.2856,159.1,159.03,2.14217907]
[1729379997952,6.2856,159.1,159.04,2.14217907]
[1729379998152,6.2856,159.1,159.02,2.14217907]
[1729379998348,6.2856,159.1,159.03,2.14217907]
[1729379998547,6.2856,159.1,159.04,2.14217907]
[1729379998862,6.2856,159.1,159.05,2.14217907]
[1729379999051,6.2856,159.1,159.02,3.42788412]
[1729379999240,6.286,159.09,159.03,5.57197293]
[1729379999435,6.286,159.09,159.04,2.14408881]
[1729379999636,6.286,159.09,159.0,20.0]
[1729379999637,6.286,159.09,159.05,2.14534798]
[1729379999942,6.286,159.09,159.02,3.43303179]
[1729380000134,6.286,159.09,159.03,5.5783937]
[1729380000336,6.286,159.09,159.04,2.14536191]
[1729380000538,6.286,159.09,159.05,2.14536191]
[1729380000750,6.286,159.09,159.02,3.43274392]
[1729380000958,6.286,159.09,159.03,5.57798853]
[1729380001160,6.286,159.09,159.04,2.14524461]
[1729380001358,6.2854,159.1,159.05,2.14524461]
[1729380001535,6.2854,159.1,159.02,3.43301712]
[1729380001735,6.2854,159.1,159.03,5.57882707]
[1729380001933,6.2854,159.1,159.04,5.57882707]
[1729380002153,21.441,159.11,159.05,5.58065436]
[1729380002360,21.441,159.11,159.06,2.14580995]
[1729380002571,21.441,159.11,159.07,2.14580995]
[1729380002745,21.441,159.11,159.01,3.43415199]
[1729380003064,21.441,159.11,159.02,5.58030067]
[1729380003259,21.441,159.11,159.0,26.1453]
[1729380003467,6.2853,159.1,159.03,2.14689418]
[1729380003654,6.2853,159.1,159.04,5.58232335]
[1729380003964,6.2853,159.1,159.05,5.58232335]
[1729380004168,21.4408,159.11,159.06,5.58232335]
[1729380004467,15.8085,159.15,159.07,2.14689418]
[1729380004762,6.2826,159.17,159.08,2.14689418]
[1729380004946,6.2826,159.17,159.06,20.0]
[1729380004947,6.2826,159.17,159.09,5.58052796]
[1729380005154,6.2822,159.18,159.1,5.58038811]
[1729380005370,6.2822,159.18,159.11,2.14614991]
[1729380005555,6.2822,159.18,159.07,3.43275705]
[1729380005755,23.776884,159.17,159.08,5.57777323]
[1729380005960,23.776884,159.17,159.09,5.57777323]
[1729380006162,23.776884,159.17,159.1,2.14501618]
[1729380006347,16.6161,159.16,159.09,3.43066806]
[1729380006674,30.060484,159.15,159.1,2.14390792]
[1729380006869,30.060484,159.15,159.07,3.43066806]
[1729380007171,30.060484,159.15,159.08,5.57468194]
[1729380007372,30.060484,159.15,159.09,2.14396086]
[1729380007580,30.060484,159.15,159.1,2.14396086]
[1729380007743,30.060484,159.15,159.07,3.43072108]
[1729380008065,30.060484,159.15,159.08,5.57395043]
[1729380008263,16.6161,159.16,159.09,2.14322935]
[1729380008569,16.6161,159.16,159.1,2.14322935]
[1729380008753,16.6161,159.16,159.11,2.14214856]
[1729380008943,16.6161,159.16,159.1,22.14214856]
[1729380009266,16.6161,159.16,159.1,20.0]
[1729380009569,16.6161,159.16,159.06,23.52635282]
[1729380009775,23.776884,159.19,159.07,34.82339501]
[1729380009945,23.776884,159.19,159.08,8.78636083]
[1729380010268,23.776884,159.19,159.09,25.56744539]
[1729380010475,16.6161,159.2,159.11,20.0]
[1729380010771,16.6161,159.2,159.12,2.13992694]
[1729380012162,6.4327,159.22,159.12,2.13992694]
[1729380012547,6.4327,159.22,159.13,2.13992694]
[1729380013249,6.4327,159.22,159.12,5.55905786]
[1729380014168,6.4327,159.22,159.12,2.13992694]
[1729380014469,23.776884,159.23,159.12,2.13326305]
[1729380014772,23.776884,159.23,159.13,20.0]
[1729380014971,15.4484,159.24,159.13,20.0]
[1729380015146,15.4484,159.24,159.13,26.03703418]
[1729380015472,6.2791,159.27,159.17,20.0]
[1729380016351,6.2791,159.27,159.16,15.7954]
[1729380016352,6.279,159.26,159.16,15.7954]
[1729380016659,6.2796,159.25,159.15,20.0]
[1729380016966,6.2796,159.25,159.12,19.20452073]
[1729380016967,30.057784,159.22,159.12,15.7954]
[1729380018576,23.776884,159.22,159.13,20.0]
[1729380019050,30.057484,159.22,159.13,20.0]
[1729380021673,23.776884,159.22,159.13,20.0]
[1729380021859,15.4484,159.23,159.13,20.0]
[1729380022778,21.7286,159.23,159.13,20.0]
[1729380024684,15.4484,159.23,159.13,20.0]
[1729380028565,6.281,159.21,159.12,15.7954]
[1729380028874,6.2791,159.21,159.12,15.7954]
[1729380029078,6.2791,159.21,159.09,20.0]
[1729380029281,30.058284,159.2,159.09,20.0]
[1729380029478,6.2818,159.19,159.08,15.7954]
[1729380030863,6.2818,159.19,159.09,20.0]
[1729380031063,30.058284,159.2,159.09,20.0]
[1729380035168,6.2791,159.21,159.11,20.0]
[1729380037804,6.2791,159.21,159.12,2.13139366]
[1729380039203,15.4484,159.23,159.12,2.13139366]
[1729380039497,21.7287,159.23,159.12,2.13139366]
[1729380040378,6.2808,159.22,159.12,2.13139366]
[1729380043901,6.2808,159.22,159.12,5.34202491]
[1729380044102,23.776884,159.21,159.12,5.34202491]
[1729380044307,23.876884,159.22,159.1,20.0]
[1729380044485,6.2823,159.18,159.11,2.13216054]
[1729380044804,6.2823,159.18,159.09,5.34552664]
[1729380045185,23.876884,159.22,159.09,5.34552664]
[1729380045512,6.2818,159.19,159.09,5.34552664]
[1729380045799,6.2818,159.19,159.1,20.0]
[1729380045993,6.2818,159.19,159.09,20.0]
[1729380046203,6.2818,159.19,159.1,25.34813926]
[1729380046376,6.2818,159.19,159.1,20.0]
[1729380046682,6.2818,159.19,159.09,23.41306275]
[1729380046885,6.2818,159.19,159.1,25.34818592]
[1729380047106,6.2818,159.19,159.1,20.0]
[1729380047399,6.2818,159.19,159.11,3.21734753]
[1729380047780,6.2818,159.19,159.1,5.3510883]
[1729380047980,6.2818,159.19,159.1,2.13374077]
[1729380048289,6.2818,159.19,159.1,5.35170897]
[1729380050402,6.2818,159.19,159.11,3.2179682]
[1729380051185,6.2818,159.19,159.12,3.2179682]
[1729380051483,6.2818,159.19,159.11,3.2179682]
[1729380051688,6.2818,159.19,159.12,3.2179682]
[1729380051891,6.2818,159.19,159.11,3.2179682]
[1729380052198,6.2818,159.19,159.12,3.2179682]
[1729380052409,6.2818,159.19,159.11,3.2179682]
[1729380052592,6.2818,159.19,159.12,3.2179682]
[1729380052791,6.2818,159.19,159.11,3.2179682]
[1729380052998,6.2818,159.19,159.12,3.2179682]
[1729380053198,6.2818,159.19,159.13,3.2179682]
[1729380053380,6.2818,159.19,159.11,3.2179682]
[1729380053586,6.2818,159.19,159.12,3.2179682]
[1729380053785,6.2818,159.19,159.13,3.2179682]
[1729380053986,6.2818,159.19,159.11,3.2179682]
[1729380054203,6.2818,159.19,159.12,3.2179682]
[1729380054398,6.2818,159.19,159.13,3.2179682]
[1729380054615,30.33571465,159.22,159.1,5.54980703]
[1729380054616,6.281,159.21,159.14,3.2179682]
[1729380054805,36.61631465,159.22,159.12,5.35170897]
[1729380054981,36.61631465,159.22,159.13,3.2179682]
[1729380055183,36.61631465,159.22,159.14,3.2179682]
[1729380055384,6.281,159.21,159.15,3.2179682]
[1729380055678,6.281,159.21,159.12,2.13374077]
[1729380055679,6.281,159.21,159.13,3.2179682]
[1729380055882,6.281,159.21,159.14,3.2179682]
[1729380056095,6.281,159.21,159.12,2.13374077]
[1729380056096,6.281,159.21,159.15,3.23078434]
[1729380056307,6.281,159.21,159.13,3.23078434]
[1729380056507,6.281,159.21,159.14,3.23078434]
[1729380056807,6.281,159.21,159.15,3.23078434]
[1729380056988,6.281,159.21,159.12,5.55765691]
[1729380056989,6.281,159.21,159.13,3.23078434]
[1729380057304,6.281,159.21,159.14,3.23078434]
[1729380057507,6.281,159.21,159.13,2.14104626]
[1729380057679,6.281,159.21,159.15,3.2318209]
[1729380057887,6.281,159.21,159.13,2.14104626]
[1729380057888,6.281,159.21,159.14,3.2318209]
[1729380058086,6.281,159.21,159.15,3.2318209]
[1729380058287,6.281,159.21,159.13,5.37286716]
[1729380058596,12.83943065,159.22,159.14,5.37286716]
[1729380058796,6.2806,159.22,159.15,3.2318209]
[1729380059005,6.2806,159.22,159.13,5.37286716]
[1729380059303,6.2806,159.22,159.14,5.37286716]
[1729380059495,6.2806,159.22,159.15,3.2318209]
[1729380059706,6.2806,159.22,159.14,5.37286716]
[1729380060001,6.2806,159.22,159.15,3.2318209]
[1729380060197,23.776884,159.22,159.13,5.37286716]
[1729380060385,6.281,159.21,159.14,5.37286716]
[1729380060590,6.281,159.21,159.15,3.2318209]
[1729380060787,6.281,159.21,159.13,5.37187459]
[1729380061007,6.281,159.21,159.14,5.37128433]
[1729380061206,6.281,159.21,159.15,5.37128433]
[1729380061516,6.281,159.21,159.16,5.37128433]
[1729380061814,6.281,159.21,159.09,27.51046636]
[1729380061815,23.776884,159.22,159.12,3.42607095]
[1729380062006,15.4484,159.23,159.14,36.1941]
[1729380062217,6.2815,159.2,159.15,5.56872286]
[1729380062514,6.2815,159.2,159.16,2.14265191]
[1729380062826,6.2815,159.2,159.11,23.42607095]
[1729380063003,6.2815,159.2,159.12,5.56907333]
[1729380063328,6.2815,159.2,159.11,20.0]
[1729380063329,23.776884,159.22,159.13,5.56907333]
[1729380063615,30.057484,159.22,159.14,5.56907333]
[1729380063822,30.057484,159.22,159.15,5.56907333]
[1729380063997,30.057484,159.22,159.16,5.56907333]
[1729380064198,30.057484,159.22,159.17,2.14300238]
[1729380064411,30.057484,159.22,159.18,2.14300238]
[1729380064617,30.057484,159.22,159.13,3.43371708]
[1729380064835,30.057484,159.22,159.11,20.0]
[1729380064836,15.4484,159.23,159.14,5.57951443]
[1729380065117,6.2795,159.25,159.15,5.57951443]
[1729380065331,6.2801,159.24,159.16,5.57951443]
[1729380065507,6.2801,159.24,159.17,5.57951443]
[1729380065709,6.2801,159.24,159.18,5.57951443]
[1729380065915,6.2801,159.24,159.19,5.57951443]
[1729380066114,6.2801,159.24,159.2,2.14579735]
[1729380066418,6.2801,159.24,159.14,3.43331203]
[1729380066622,6.2801,159.24,159.15,5.57925149]
[1729380066924,6.2801,159.24,159.16,5.58025371]
[1729380067117,23.776884,159.26,159.18,20.0]
[1729380067297,15.803,159.27,159.19,3.43447927]
[1729380067498,15.803,159.27,159.2,5.58078006]
[1729380067698,15.803,159.27,159.21,5.58078006]
[1729380068007,15.803,159.27,159.22,2.14630079]
[1729380068316,15.803,159.27,159.23,2.14630079]
[1729380068525,15.803,159.27,159.2,3.43353011]
[1729380068824,15.803,159.27,159.21,5.57900539]
[1729380069000,15.803,159.27,159.22,5.57900539]
[1729380069202,15.803,159.27,159.23,5.57766645]
[1729380069395,15.803,159.27,159.24,2.14547528]
[1729380069596,15.803,159.27,159.2,3.43219117]
[1729380069903,15.803,159.27,159.21,5.57230873]
[1729380070225,15.803,159.27,159.22,5.57230873]
[1729380070418,15.803,159.27,159.18,20.0]
[1729380070739,15.803,159.27,159.19,5.5635688]
[1729380070931,15.803,159.27,159.2,5.5635688]
[1729380071221,15.803,159.27,159.21,5.5635688]
[1729380071392,23.776884,159.28,159.22,5.5635688]
[1729380071596,23.776884,159.28,159.23,5.5635688]
[1729380071798,23.776884,159.28,159.24,5.5635688]
[1729380072117,23.776884,159.28,159.25,5.56074328]
[1729380072422,23.776884,159.28,159.26,2.13966652]
[1729380072606,23.776884,159.28,159.21,3.41952997]
[1729380072812,23.776884,159.28,159.22,5.55649487]
[1729380073005,23.776884,159.28,159.23,5.55649487]
[1729380073210,0.6423024,159.29,159.24,5.55649487]
[1729380073413,0.6423024,159.29,159.25,5.55649487]
[1729380073619,0.6423024,159.29,159.26,2.1369649]
[1729380073914,0.6423024,159.29,159.22,20.0]
[1729380074110,0.6423024,159.29,159.23,3.41729732]
[1729380074436,0.6423024,159.29,159.22,20.0]
[1729380074437,0.6423024,159.29,159.24,5.55292165]
[1729380074617,0.6423024,159.29,159.25,2.13562433]
[1729380074927,0.6423024,159.29,159.26,2.13562433]
[1729380075128,0.6423024,159.29,159.23,3.41729732]
[1729380075307,0.6423024,159.29,159.24,2.13357709]
[1729380075505,0.6423024,159.29,159.25,2.13357709]
[1729380075724,0.6423024,159.29,159.26,2.13357709]
[1729380075915,0.6423024,159.29,159.24,2.13357709]
[1729380076116,0.6423024,159.29,159.25,2.13357709]
[1729380076324,0.6423024,159.29,159.24,2.13357709]
[1729380076518,0.6423024,159.29,159.25,2.13357709]
[1729380076720,0.6423024,159.29,159.24,2.13357709]
[1729380076927,0.6423024,159.29,159.25,2.13357709]
[1729380077121,0.6423024,159.29,159.24,2.13262533]
[1729380077337,0.6423024,159.29,159.23,3.41729732]
[1729380077338,0.6423024,159.29,159.25,2.13262533]
[1729380077627,0.6423024,159.29,159.24,2.1319435]
[1729380077805,0.6423024,159.29,159.25,2.1319435]
[1729380078010,23.776884,159.28,159.24,2.1319435]
[1729380078329,23.776884,159.28,159.19,5.54345007]
[1729380078510,16.9234024,159.29,159.2,5.54345007]
[1729380078711,16.9234024,159.29,159.21,5.54345007]
[1729380079022,16.9234024,159.29,159.22,2.1319435]
[1729380079210,16.9234024,159.29,159.18,5.70139223]
[1729380079211,16.9234024,159.29,159.23,2.1319435]
[1729380079533,16.9234024,159.29,159.2,23.41150657]
[1729380079534,16.9234024,159.29,159.21,5.54345007]
[1729380079712,16.9234024,159.29,159.22,2.1319435]
[1729380079905,16.9234024,159.29,159.23,2.1319435]
[1729380080105,16.9234024,159.29,159.22,2.1319435]
[1729380080530,23.776884,159.26,159.21,2.1319435]
[1729380080735,23.776884,159.28,159.21,2.1319435]
[1729380081007,23.776884,159.26,159.19,2.1319435]
[1729380081312,23.776884,159.26,159.2,2.13148826]
[1729380081532,23.776884,159.26,159.18,2.13148826]
[1729380081736,23.776884,159.26,159.19,2.13148826]
[1729380081914,23.776884,159.26,159.2,2.13148826]
[1729380082229,23.776884,159.26,159.17,19.32517817]
[1729380082230,23.776884,159.26,159.18,2.13148826]
[1729380082431,23.776884,159.26,159.19,2.13148826]
[1729380082640,23.776884,159.26,159.2,2.13148826]
[1729380082814,23.776884,159.26,159.18,2.13148826]
[1729380083014,23.776884,159.26,159.19,2.13148826]
[1729380083215,23.776884,159.26,159.2,2.13148826]
[1729380083533,16.9234024,159.29,159.21,2.13148826]
[1729380083733,16.9234024,159.29,159.22,2.13148826]
[1729380083916,16.9234024,159.29,159.21,5.54226643]
[1729380084114,16.9234024,159.29,159.22,22.13148826]
[1729380084315,16.9234024,159.29,159.23,2.13148826]
[1729380084510,16.9234024,159.29,159.23,2.13018092]
[1729380084921,16.9234024,159.29,159.21,20.0]
[1729380085213,16.9234024,159.29,159.22,2.13011687]
[1729380085610,16.9234024,159.29,159.19,2.13011687]
[1729380085812,16.9234024,159.29,159.2,22.13011687]
[1729380086119,16.9234024,159.29,159.22,20.0]
[1729380086622,16.9234024,159.29,159.18,23.40774045]
[1729380086935,16.9234024,159.29,159.19,22.12958537]
[1729380087136,16.9234024,159.29,159.2,2.12958537]
[1729380087337,16.9234024,159.29,159.21,22.12958537]
[1729380087511,16.9234024,159.29,159.22,2.12958537]
[1729380088425,16.9234024,159.29,159.21,20.0]
[1729380088739,16.9234024,159.29,159.22,2.12958537]
[1729380089242,16.9234024,159.29,159.21,20.0]
[1729380089418,16.9234024,159.29,159.22,2.12958537]
[1729380089931,16.9234024,159.29,159.19,2.12958537]
[1729380090133,16.9234024,159.29,159.2,22.12958537]
[1729380090319,23.776884,159.28,159.21,5.53661139]
[1729380090523,30.055384,159.28,159.19,20.0]
[1729380090737,30.055384,159.28,159.2,2.12958537]
[1729380092216,30.055384,159.28,159.18,20.0]
[1729380092541,23.776884,159.28,159.21,20.0]
[1729380092720,23.776884,159.28,159.22,2.12988897]
[1729380093226,23.776884,159.28,159.19,2.12988897]
[1729380093431,23.776884,159.28,159.2,22.12988897]
[1729380093642,23.776884,159.28,159.21,2.12988897]
[1729380094031,16.9234024,159.29,159.22,22.12988897]
[1729380094235,16.9234024,159.29,159.23,2.12988897]
[1729380094939,0.6423024,159.29,159.21,20.0]
[1729380095131,0.6423024,159.29,159.22,2.12956672]
[1729380095541,0.6423024,159.29,159.24,20.0]
[1729380095837,0.6423024,159.29,159.25,2.12956672]
[1729380096343,0.6423024,159.29,159.24,20.0]
[1729380097344,0.6423024,159.29,159.25,2.12887338]
[1729380099731,0.6423024,159.29,159.24,20.0]
[1729380100959,0.6423024,159.29,159.25,2.12775616]
[1729380102242,0.6423024,159.29,159.24,20.0]
[1729380105724,0.6423024,159.29,159.25,2.12580508]
[1729380107340,0.6423024,159.29,159.24,20.0]
[1729380107544,0.6423024,159.29,159.26,20.0]
[1729380107858,0.6423024,159.29,159.27,2.12445978]
[1729380108231,0.6423024,159.29,159.25,2.12445978]
[1729380108754,0.6423024,159.29,159.26,20.0]